Cogmind - Beta 13 @@@ ROGUE MODE // 2024.04.10 @ 02:07:28 Player: Xidas Result: Self-destructed Performance ------------- Evolutions (2) 1000 Regions Visited (5) 1000 Robots Destroyed (15) 75 Value Destroyed (309) 309 Prototype IDs (2) 40 Alien Tech Used (0) 0 Bonus (35) 35 TOTAL SCORE: 2459 Bonus ------- Follower Combat Kills 35 Cogmind --------- Core Integrity 160/550 Matter 269/300 Energy 275/275 System Corruption 0% Temperature Cool (9) Movement Rolling (95) Ox1 Location -8/Materials Parts ------- > --- POWER (1) -------- Deuterium Engine > --- PROPULSION (4) --- Wheel > --- UTILITY (4) ------ Medium Storage Unit Targeting Computer Targeting Computer Targeting Computer > --- WEAPON (2) ------- (None) > --- INVENTORY (10) --- Ion Engine Light Ion Engine Improved Ion Engine Deuterium Engine Light Nuclear Core Peak State ------------ > --- POWER ------------ Deuterium Engine > --- PROPULSION ------- Wheel Compact Wheel > --- UTILITY ---------- Medium Storage Unit Targeting Computer Light Armor Plating Light Armor Plating > --- WEAPON ----------- Beam Rifle Beam Cannon > --- INVENTORY -------- Ion Engine Light Ion Engine Improved Ion Engine Heat Sink Targeting Computer Targeting Computer Light Armor Plating Plasma Cutter [Rating: 13] Favorites ----------- Power Improved Ion Engine Engine Improved Ion Engine Propulsion Compact Wheel Leg Aluminum Leg Wheel Compact Wheel Utility Light Armor Plating Device Cooling System Storage Medium Storage Unit Processor Targeting Computer Protection Light Armor Plating Weapon Beam Cannon Energy Gun Beam Rifle Energy Cannon Beam Cannon Ballistic Gun Assault Rifle Special Weapon Plasma Cutter Build | -11 -10 -10 -10 -9 -8 ------- Run | Yrd Mat Min Exi Min Mat Slots Evolved 4 | . . . . . 4 Power . | . . . . . . Propulsion 2 | . . . . . 2 Utility 2 | . . . . . 2 Weapon . | . . . . . . Parts Attached 30 | 6 6 5 . . 13 Power 5 | 1 1 1 . . 2 Engine 5 | 1 1 1 . . 2 Core . | . . . . . . Reactor . | . . . . . . Propulsion 8 | 2 2 1 . . 3 Treads . | . . . . . . Leg 1 | . . . . . 1 Wheel 7 | 2 2 1 . . 2 Hover . | . . . . . . Flight . | . . . . . . Utility 11 | 1 2 2 . . 6 Device 1 | . . . . . 1 Storage 2 | 1 1 . . . . Processor 3 | . . . . . 3 Hackware . | . . . . . . Protection 5 | . 1 2 . . 2 Artifact . | . . . . . . Weapon 6 | 2 1 1 . . 2 Energy Gun 1 | . . 1 . . . Energy Cannon 1 | . 1 . . . . Ballistic Gun 3 | 2 . . . . 1 Ballistic Cannon . | . . . . . . Launcher . | . . . . . . Special Weapon 1 | . . . . . 1 Impact Weapon . | . . . . . . Slashing Weapon . | . . . . . . Piercing Weapon . | . . . . . . Special Melee Weapon . | . . . . . . Unidentified Prototypes . | . . . . . . Parts Lost 14 | . . 1 . . 13 Power 1 | . . . . . 1 Propulsion 5 | . . 1 . . 4 Utility 4 | . . . . . 4 Weapon 4 | . . . . . 4 Highest Loss Streak 11 | . . 1 . . 11 To Critical Strikes . | . . . . . . Average Slot Usage (%) 90 | . 93 94 100 100 65 Engine 12 | . 14 14 14 14 6 Wheel 23 | . 28 23 28 28 11 Storage 12 | . 14 14 14 14 9 Processor 2 | . . . . . 11 Protection 12 | . 7 14 14 14 9 Energy Gun 9 | . . 10 14 14 4 Energy Cannon 10 | . 5 14 14 14 4 Ballistic Gun 4 | . 22 3 . . 2 Naked Turns . | . . . . . . Heaviest Build 31 | 13 23 26 26 26 31 Greatest Support 32 | 20 32 32 26 26 26 Greatest Overweight (x) 4 | . . 1 . . 4 Average Overweight (x) . | . . . . . . Largest Inventory Capacity 10 | 8 10 10 10 10 10 Average Capacity 9 | 7 8 10 10 10 10 Most Carried 10 | 1 8 10 8 9 10 Average Carried 7 | . 3 9 8 8 8 Final Capacity 10 | 8 10 10 10 10 10 Final Carried 9 | 1 8 8 8 9 5 Class Distribution -------------------- 52% | Scavenger-Mutant 47% | Mutant Dominant Class ---------------- Mutant | -10/Materials Mutant | -10/Mines Scavenger-Mutant | -10/Exiles Scavenger-Mutant | -9/Mines Mutant | -8/Materials Resources | -11 -10 -10 -10 -9 -8 ----------- Run | Yrd Mat Min Exi Min Mat Matter Collected 555 | 229 123 65 . 10 128 Remotely . | . . . . . . Salvage Created 498 | . 133 197 . . 168 Parts 34 | . 9 15 . . 10 Haulers Intercepted 2 | . 2 . . . . Recyclers Shooed . | . . . . . . Parts Field Recycled . | . . . . . . Retrieved Matter . | . . . . . . Parts Self-Destructed . | . . . . . . Prevented . | . . . . . . Kills | -11 -10 -10 -10 -9 -8 ------- Run | Yrd Mat Min Exi Min Mat Combat Hostiles Destroyed 11 | . 1 5 . . 5 Guns 6 | . 1 . . . 5 Cannons 4 | . . 4 . . . Classes Destroyed 5 | . 2 3 . . . Tunneler 2 | . . 2 . . . Hauler 2 | . 2 . . . . Swarmer 6 | . . 3 . . 3 Grunt 3 | . 1 . . . 2 Sentry 2 | . . 2 . . . Best Kill Streak 3 | . 2 2 . . 3 Combat Bots Only 3 | . 1 2 . . 3 Max Kills in Single Turn 1 | . 1 1 . . 1 Gunslinging . | . . . . . . Exploded . | . . . . . . Melee . | . . . . . . Uniques/NPCs Destroyed . | . . . . . . Combat | -11 -10 -10 -10 -9 -8 -------- Run | Yrd Mat Min Exi Min Mat Hostile Shots Fired 146 | . 6 40 . . 100 Missed 39 | . 1 10 . . 28 Damage Taken 1627 | . 54 309 . . 1264 Core 418 | . 12 16 . . 390 Absorbed by Shields . | . . . . . . Regen/Repaired (Parts) 57 | . . . . . 57 Core Remaining (%) 94 | 100 . . . 88 . Volleys Fired 79 | . 11 17 . . 51 Largest 2 | . 2 2 . . 2 Hottest 116 | . 80 116 . . 116 Shots Fired 119 | . 22 34 . . 63 Gun 86 | . 20 17 . . 49 Cannon 31 | . 2 17 . . 12 Launcher . | . . . . . . Special 2 | . . . . . 2 Kinetic 54 | . 20 5 . . 29 Thermal 65 | . 2 29 . . 34 Explosive . | . . . . . . Electromagnetic . | . . . . . . Robot Hit Streak 15 | . 13 14 . . 15 Robot Miss Streak 5 | . 1 5 . . 4 Penetration Max . | . . . . . . Secondary Targets . | . . . . . . Shots Hit Robots 75 | . 18 12 . . 45 Core Hits 31 | . 7 7 . . 17 Critical Kills 1 | . . 1 . . . Critical Parts Destroyed . | . . . . . . Critical Strikes 2 | . . 1 . . 1 Burn 1 | . . . . . 1 Meltdown 1 | . . 1 . . . Melee Attacks . | . . . . . . Impact . | . . . . . . Slashing . | . . . . . . Piercing . | . . . . . . Sneak Attacks . | . . . . . . Combat Hostiles . | . . . . . . Follow-up Attacks . | . . . . . . Damage Inflicted 936 | . 212 195 . . 529 Guns 657 | . 176 53 . . 428 Cannons 267 | . 36 142 . . 89 Explosions . | . . . . . . Melee . | . . . . . . Ramming . | . . . . . . Kinetic 412 | . 176 25 . . 211 Thermal 524 | . 36 170 . . 318 Explosive . | . . . . . . Electromagnetic . | . . . . . . Impact . | . . . . . . Slashing . | . . . . . . Piercing . | . . . . . . Highest Corruption . | . . . . . . Average Corruption . | . . . . . . Corruption Purged . | . . . . . . Corruption Blocked . | . . . . . . Overload Shots . | . . . . . . Overflow Damage . | . . . . . . Projectiles . | . . . . . . Explosions . | . . . . . . Melee . | . . . . . . Knockbacks . | . . . . . . Impact . | . . . . . . Kinetic . | . . . . . . Secondary . | . . . . . . Self-Inflicted Damage . | . . . . . . Shots . | . . . . . . Rammed . | . . . . . . Targets Rammed . | . . . . . . Kicked . | . . . . . . Crushed . | . . . . . . Highest Temperature 543 | . 54 330 . . 543 Average Temperature 158 | . 16 113 . . 251 Received Heat Transfer 732 | . 30 45 . . 657 Effects 9 | . . . . . 9 Shutdowns 1 | . . . . . 1 Interference 1 | . . . . . 1 Matter Decay 1 | . . . . . 1 Short Circuit 1 | . . . . . 1 Damage (minor) 2 | . . . . . 2 Damage (major) 2 | . . . . . 2 Damage (core) 1 | . . . . . 1 Siege Activations . | . . . . . . Robots Corrupted . | . . . . . . Combat Hostiles . | . . . . . . Parts Fried . | . . . . . . Impact Corruptions . | . . . . . . Robots Melted 1 | . . 1 . . . Combat Hostiles 1 | . . 1 . . . Parts Melted 1 | . . 1 . . . Heat Transferred 1295 | . 74 370 . . 851 Parts Sabotaged . | . . . . . . Parts Stolen . | . . . . . . Parts Stripped . | . . . . . . Power Chain Reactions . | . . . . . . Alert | -11 -10 -10 -10 -9 -8 ------- Run | Yrd Mat Min Exi Min Mat Peak Influence 173 | . 48 173 . . 102 Initial 18 | . . 18 . . . Average 47 | . 28 115 . . 46 Maximum Alert Level . | . . . . . . Low Security (%) 100 | 100 100 100 . 100 100 Level 1 . | . . . . . . Level 2 . | . . . . . . Level 3 . | . . . . . . Level 4 . | . . . . . . Level 5 . | . . . . . . High Security . | . . . . . . Max Security . | . . . . . . Squads Dispatched 3 | . 1 . . 1 1 Investigation . | . . . . . . Extermination . | . . . . . . Reinforcement 2 | . 1 . . . 1 Assault 1 | . . . . 1 . Garrison . | . . . . . . Intercept . | . . . . . . Searches Triggered . | . . . . . . Construction Impeded . | . . . . . . Haulers Reinforced . | . . . . . . Active Scanning Responses . | . . . . . . Cargo Convoy Interrupts . | . . . . . . Stealth | -11 -10 -10 -10 -9 -8 --------- Run | Yrd Mat Min Exi Min Mat Distress Signals 1 | . . . . . 1 Communications Jammed . | . . . . . . Distress Signals . | . . . . . . Times Spotted 23 | . 2 5 . . 16 Peak Tracking Total 7 | . 1 3 . . 7 Tactical Retreats 3 | . . 1 . . 2 Traps | -11 -10 -10 -10 -9 -8 ------- Run | Yrd Mat Min Exi Min Mat Traps Triggered . | . . . . . . Indirectly . | . . . . . . Trap Hack Attempts . | . . . . . . Triggered . | . . . . . . Disarmed . | . . . . . . Reprogrammed . | . . . . . . Reused . | . . . . . . Traps Extracted . | . . . . . . Installed . | . . . . . . Triggered . | . . . . . . Machines | -11 -10 -10 -10 -9 -8 ---------- Run | Yrd Mat Min Exi Min Mat Machines Disabled 2 | . . 2 . . . Max in Single Turn 1 | . . 1 . . . Machines Repaired . | . . . . . . Machines Dismantled . | . . . . . . Machines Sabotaged . | . . . . . . Overloaded Fab Kills . | . . . . . . Hacking | -11 -10 -10 -10 -9 -8 --------- Run | Yrd Mat Min Exi Min Mat Machines Accessed 8 | . 3 . 4 . 1 Terminals 3 | . 3 . . . . Fabricators . | . . . . . . Repair Stations 1 | . . . . . 1 Recycling Units . | . . . . . . Scanalyzers . | . . . . . . Garrison Access . | . . . . . . Total Hacks 11 | . 5 . 4 . 2 Successful 8 | . 2 . 4 . 2 Failed 3 | . 3 . . . . Catastrophic 1 | . 1 . . . . Database Lockouts . | . . . . . . Manual 5 | . 5 . . . . Terminals 5 | . 5 . . . . Fabricators . | . . . . . . Repair Stations 2 | . . . . . 2 Recycling Units . | . . . . . . Scanalyzers . | . . . . . . Garrison Access . | . . . . . . Terminal Hacks 6 | . 2 . 4 . . Record 4 | . . . 4 . . Prototype ID Bank 1 | . 1 . . . . Branch Access Points 1 | . 1 . . . . Fabricator Hacks . | . . . . . . Repair Station Hacks 2 | . . . . . 2 Scan Component 1 | . . . . . 1 Repair 1 | . . . . . 1 Recycling Unit Hacks . | . . . . . . Scanalyzer . | . . . . . . Garrison Access Hacks . | . . . . . . Unauthorized Hacks . | . . . . . . Terminals . | . . . . . . Fabricators . | . . . . . . Repair Stations . | . . . . . . Recycling Units . | . . . . . . Scanalyzers . | . . . . . . Garrison Access . | . . . . . . Data Cores Recovered . | . . . . . . Used . | . . . . . . Hacking Detections 2 | . 2 . . . . Full Trace Events . | . . . . . . Feedback Events . | . . . . . . Feedback Blocked . | . . . . . . Robot Schematics Acquired . | . . . . . . Robots Built . | . . . . . . Authchips . | . . . . . . Time . | . . . . . . Total Robot Build Rating . | . . . . . . Part Schematics Acquired . | . . . . . . Parts Built . | . . . . . . Authchips . | . . . . . . Time . | . . . . . . Total Part Build Rating . | . . . . . . Parts Repaired 1 | . . . . . 1 Time 26 | . . . . . 26 Parts Recycled . | . . . . . . Recycled Matter . | . . . . . . Retrieved Matter . | . . . . . . Retrieved Components . | . . . . . . Parts Scanalyzed . | . . . . . . Part Schematics Acquired . | . . . . . . Parts Damaged . | . . . . . . Bothacking | -11 -10 -10 -10 -9 -8 ------------ Run | Yrd Mat Min Exi Min Mat Used RIF Installer . | . . . . . . Robots Hacked . | . . . . . . Non-combat . | . . . . . . Combat . | . . . . . . Robot Hacks Applied . | . . . . . . Relay Couplers Released . | . . . . . . Fabnet Peak Effective % . | . . . . . . Robots Rewired . | . . . . . . Allies Hacked . | . . . . . . Hacks Repelled . | . . . . . . Allies | -11 -10 -10 -10 -9 -8 -------- Run | Yrd Mat Min Exi Min Mat Total Allies 1 | . . . . 1 . Largest Group 1 | . . . . 1 1 Highest-Rated Group 31 | . . . . 31 31 Highest-Rated Ally 31 | . . . . 31 31 Total Orders . | . . . . . . Ally Attacks 7 | . . . . . 7 Total Damage 126 | . . . . . 126 Kills 1 | . . . . . 1 Allies Corrupted . | . . . . . . Allies Melted . | . . . . . . Intel | -11 -10 -10 -10 -9 -8 ------- Run | Yrd Mat Min Exi Min Mat Robot Analysis Total . | . . . . . . Derelict Logs Recovered 1 | . . 1 . . . Drone Launches . | . . . . . . Drone Recoveries . | . . . . . . Exploration | -11 -10 -10 -10 -9 -8 ------------- Run | Yrd Mat Min Exi Min Mat Turns Passed 1372 | 36 159 253 353 265 306 Spaces Moved 1054 | 33 113 171 393 241 103 Core 2 | 1 . . . . 1 Treads . | . . . . . . Legs 14 | . . . . . 14 Wheels 1038 | 32 113 171 393 241 88 Hover . | . . . . . . Flight . | . . . . . . Fastest Speed 50 | 50 80 90 90 90 80 Average Speed 94 | 79 91 100 90 90 116 Slowest Speed 260 | 80 100 115 90 90 260 Overloaded Moves . | . . . . . . Propulsion Burnouts . | . . . . . . Robots Hopped . | . . . . . . Cave-ins Triggered . | . . . . . . Exploration Rate (%) 33 | 4 25 33 88 40 9 Regions Visited 5 Branch Regions 3 Pre-discovered Areas 1 | . . 1 . . . Known Exits Taken 1 | . 1 . . . . Unknown Exits Taken 4 | 1 . 1 1 1 . Scrap Searched 1 | . . . . 1 . Spaces Dug . | . . . . . . Terrain Destroyed . | . . . . . . Melee . | . . . . . . Projectile . | . . . . . . AOE . | . . . . . . Terrain Rammed . | . . . . . . Walls Destroyed . | . . . . . . Machines Disabled . | . . . . . . Actions | -11 -10 -10 -10 -9 -8 --------- Run | Yrd Mat Min Exi Min Mat Total 1311 | 39 147 218 392 288 227 Wait 128 | . 10 17 . 47 54 Move 1049 | 32 112 170 392 240 103 Hop . | . . . . . . Pick Up 15 | 1 5 3 . 1 5 Fast Attach 16 | 6 4 2 . . 4 Attach 8 | . . . . . 8 Detach . | . . . . . . Swap 6 | . 2 3 . . 1 Drop 10 | . 3 6 . . 1 Fire 79 | . 11 17 . . 51 Melee . | . . . . . . Ram . | . . . . . . Kick . | . . . . . . Crush . | . . . . . . Escape Stasis . | . . . . . . Rewire . | . . . . . . Trap . | . . . . . . Miscellaneous . | . . . . . . Route ------- -11/Scrapyard -10/Materials (discovered 2 exits: *Min x2) -10/Mines -10/Exiles -9/Mines -8/Materials History --------- Turn | Location | Event 23 | -11/Scrapyard | Discovered new exit (range 15) 37 | -11/Scrapyard | Entered Materials 46 | -10/Materials | Identified exit to Mines 196 | -10/Materials | Entered Mines 300 | -10/Mines | Build established: Mutant 385 | -10/Mines | Learned location of Zion (-7) 445 | -10/Mines | Deemed a non-threat by the Exiles lab entrance 445 | -10/Mines | Discovered new exit (range 5) 449 | -10/Mines | Entered Exiles 449 | -10/Exiles | Found Exiles lab abandoned 699 | -10/Exiles | Build established: Scavenger-Mutant 792 | -10/Exiles | Discovered new exit (range 12) 802 | -10/Exiles | Entered Mines 932 | -9/Mines | Met a Derelict testing a Signal Generator 1042 | -9/Mines | Discovered new exit (range 7) 1067 | -9/Mines | Entered Materials 1067 | -8/Materials | Accompanied by 1 ally 1067 | -8/Materials | Evolved 4 slots: Propulsion x2, Utility x2 1162 | -8/Materials | Repaired Lgt. Armor Plating 1261 | -8/Materials | Core integrity fell below 50% 1338 | -8/Materials | Lost 11 parts (1p3n4u3w) 1373 | -8/Materials | Self-destructed Last Messages --------------- 01259_ K-01 Serf collects debris. 01262_ U-05 Engineer builds a Door. 01267_ K-01 Serf collects debris. 01275_ Acquired Lgt. Assault Rifle. 01279_ Critical hit (Burn: +37). 01285_ Lgt. Armor Plating destroyed. 01295_ Aluminum Leg destroyed. 01301_ M-13 Machinist destroyed. 01304_ Acquired Wheel. 01307_ Cooling System destroyed. 01311_ Critical hit (Burn: +37). 01311_ G-50 Soldier destroyed. 01313_ Acquired 23 matter. 01316_ Acquired Wheel. 01318_ Acquired 10 matter. 01356_ Wheel destroyed. 01365_ M-13 Machinist repairs G-47 Trooper. 01369_ ALERT: Hostiles spotted, dispatching reinforcements to Terminal M008. 01373_ Lgt. Assault Rifle destroyed. Map ----- +----------------------------------------------------+ | ???????????????????????????????????????????????? | | ???????????????????????????????????????????????? | | ???????????????????????????????????????????????? | | ???????????????????????????????????????????????? | | ???????????????????????????????????????????????? | | ???????????????????????????????????????????????? | | ???????????????????????????????????????????????? | | ???????????????????????????????????????????????? | | ???????????????????????????????????????????????? | | ???????????????????????????????????????????????? | | ???????????????????????????????????????????????? | | ???????????????????????????????????????????????? | | ???????????????????????????????????????????????? | | ???????????????????????????????????????????????? | | ??????????????????????????????????#????????????? | | ????????????????????????????????? #????????????? | | ????????????????????????????????? #????????????? | | ???????????????????????????????? ?????????????? | | ???????????????????????????????? ?????????????? | | ??????????????????????????????? ??????????????? | | ??????????????????????????????? #####??????????? | | ?????????????????????????????? ! #??????????? | | ?????????????????????????????? #??????????? | | ?????????????????????????????^ " ####???????? | | ????????????????????########? T ?????? | | ????????????????????# @ # " #?????? | | ????????????????????# # ! #?????? | | ?????????######?????#""" g +?????? | | ?????????# #?????#"R # ###???????????? | | ??######## #?????#""" u # #?????????????? | | ??# # #?????# #?# ###?????????????? | | ??#""" # #######+######?? #???????????????? | | ??#"R # %%+% #????????#???????????????? | | ??#""" / %#% #????????????????????????? | | ??# *%# # %* ###??????????????????????? | | ??# !# + ! #?????????????????????? | | ??####"### # #### #?????????????????????? | | ?????# #?###### #??? #?????????????????????? | | ?????# #??????# #???? ????????????????????? | | ?????# #??????#%####???? ##???????????????????? | | ?????# #??????# #???????? #????????????????????? | | ?????# #??????#%#?????????#????????????????????? | | ?????# ########+####???????????????????????????? | | ?????# + #???????????????????????????? | | ?????# # """ #???????????????????????????? | | ?????# # """ #???????????????????????????? | | ?????# # """ ! #???????????????????????????? | | ?????# + #???????????????????????????? | | ?????# # % #???????????????????????????? | | ?????# # #???????????????????????????? | +----------------------------------------------------+ Best States ------------- Heat Dissipation 53 Energy Generation 14 Energy Capacity 275 Matter Stores 300 Matter Capacity 300 Sight Range 16 Terrain Scan Density 10 Armor Coverage 300 Evasion (%) 44 Targeting Accuracy 15 Item Schematics ----------------- None Robot Schematics ------------------ None Fabricated ------------ Nothing Alien Tech Used ----------------- None Achievements -------------- None Challenges ------------ None Game ------ Seed RecyclingFlakMagmablaster Manual? 0 Play Time 00:17:25 Cumulative 11.1 hours Start 2024.04.10 @ 01:51:41 End 2024.04.10 @ 02:07:28 Sessions 1 Manual Loads 0 Difficulty Rogue Special Mode None Game No. 11 Rogue 11 Adventurer 0 Explorer 0 Win Type - Total 0 Types 0/0/0/0/0/0/0/0/0 Lore% 15 Gallery% 15 Achievement% 11 Wizard Run 0 Options --------- Layout 1 ASCII 0 Keyboard 0 Movement Mouse Keybinds 0 Fullscreen 1 Font 24/Smallcaps Map View 50x35 Zoom Use 0% Tactical HUD 1 Map Filters NONE Filters NONE Steam 1 RUN: 50edb944-2afd-4772-a12d-7637abcd7aa9